[Event "January 2 Late 2024"]
[Site "https://www.chess.com"]
[Date "2024.01.02"]
[Round "10"]
[White "Toktomushev, Teimur"]
[Black "Brown_Mamba24"]
[Result "0-1"]
[Board "62"]
[TimeControl "180+1"]
[WhiteFideId "14176726"]
[WhiteElo "2479"]
[BlackElo "2617"]
[WhiteTeam "UKR"]
[WhiteClock "0:00:00"]
[BlackClock "0:00:07"]

1. d4 {[%clk 0:03:00]}  Nf6 {[%clk 0:02:57]} 2. c4 {[%clk 0:03:00]}  g6 {[%clk 0:02:56]} 3. Nc3 {[%clk 0:03:00]}  Bg7 {[%clk 0:02:56]} 4. e4 {[%clk 0:03:00]}  d6 {[%clk 0:02:56]} 5. f3 {[%clk 0:03:01]}  O-O {[%clk 0:02:56]} 6. Be3 {[%clk 0:03:02]}  a6 {[%clk 0:02:55]} 7. Qd2 {[%clk 0:03:00]}  Nc6 {[%clk 0:02:55]} 8. Nge2 {[%clk 0:02:59]}  Na5 {[%clk 0:02:55]} 9. Nc1 {[%clk 0:02:57]}  Nd7 {[%clk 0:02:53]} 10. Nb3 {[%clk 0:02:44]}  c5 {[%clk 0:02:50]} 11. dxc5 {[%clk 0:02:14]}  Nxb3 {[%clk 0:02:49]} 12. axb3 {[%clk 0:02:13]}  Nxc5 {[%clk 0:02:48]} 13. Ra3 {[%clk 0:02:11]}  a5 {[%clk 0:02:42]} 14. Be2 {[%clk 0:01:38]}  Be6 {[%clk 0:02:37]} 15. O-O {[%clk 0:01:33]}  Qb6 {[%clk 0:02:35]} 16. Qe1 {[%clk 0:00:37]}  Rfc8 {[%clk 0:02:33]} 17. Qf2 {[%clk 0:00:23]}  Qd8 {[%clk 0:02:22]} 18. Rd1 {[%clk 0:00:17]}  Qe8 {[%clk 0:02:07]} 19. Rda1 {[%clk 0:00:07]}  b6 {[%clk 0:02:04]} 20. Bf1 {[%clk 0:00:07]}  Bd7 {[%clk 0:01:49]} 21. Nd5 {[%clk 0:00:06]}  Rab8 {[%clk 0:01:46]} 22. b4 {[%clk 0:00:03]}  axb4 {[%clk 0:01:45]} 23. Ra7 {[%clk 0:00:02]}  b3 {[%clk 0:01:40]} 24. Bd4 {[%clk 0:00:03]}  Ne6 {[%clk 0:01:35]} 25. Bxg7 {[%clk 0:00:03]}  Kxg7 {[%clk 0:01:36]} 26. Qd2 {[%clk 0:00:02]}  b5 {[%clk 0:01:32]} 27. Qc3+ {[%clk 0:00:03]}  f6 {[%clk 0:01:29]} 28. Qxb3 {[%clk 0:00:02]}  bxc4 {[%clk 0:01:28]} 29. Qc3 {[%clk 0:00:03]}  Rb3 {[%clk 0:01:24]} 30. Qc2 {[%clk 0:00:03]}  Nd4 {[%clk 0:01:23]} 31. Qd2 {[%clk 0:00:02]}  Nc6 {[%clk 0:01:20]} 32. Rc7 {[%clk 0:00:02]}  Rxc7 {[%clk 0:01:17]} 33. Nxc7 {[%clk 0:00:03]}  Qb8 {[%clk 0:01:17]} 34. Nd5 {[%clk 0:00:01]}  Rxb2 {[%clk 0:01:16]} 35. Qc3 {[%clk 0:00:02]}  e6 {[%clk 0:01:07]} 36. Ne3 {[%clk 0:00:01]}  Qb6 {[%clk 0:01:06]} 37. Kh1 {[%clk 0:00:02]}  Ne5 {[%clk 0:00:46]} 38. Nxc4 {[%clk 0:00:02]}  Nxc4 {[%clk 0:00:46]} 39. Qxc4 {[%clk 0:00:03]}  Bb5 {[%clk 0:00:39]} 40. Qc1 {[%clk 0:00:02]}  Qf2 {[%clk 0:00:34]} 41. h3 {[%clk 0:00:01]}  g5 {[%clk 0:00:29]} 42. Kh2 {[%clk 0:00:01]}  Rc2 {[%clk 0:00:20]} 43. Qe1 {[%clk 0:00:02]}  Bxf1 {[%clk 0:00:16]} 44. Qxf1 {[%clk 0:00:02]}  Qd4 {[%clk 0:00:17]} 45. Qe1 {[%clk 0:00:02]}  Qe5+ {[%clk 0:00:17]} 46. Kh1 {[%clk 0:00:02]}  Kg6 {[%clk 0:00:17]} 47. Qg1 {[%clk 0:00:02]}  Qb2 {[%clk 0:00:17]} 48. Rd1 {[%clk 0:00:02]}  Qb4 {[%clk 0:00:15]} 49. Qf1 {[%clk 0:00:03]}  Qc5 {[%clk 0:00:15]} 50. Qd3 {[%clk 0:00:03]}  Kh6 {[%clk 0:00:13]} 51. Qxd6 {[%clk 0:00:02]}  Qf2 {[%clk 0:00:13]} 52. Qh2 {[%clk 0:00:02]}  Qe2 {[%clk 0:00:13]} 53. Rg1 {[%clk 0:00:02]}  Rd2 {[%clk 0:00:12]} 54. h4 {[%clk 0:00:02]}  Kg6 {[%clk 0:00:12]} 55. hxg5 {[%clk 0:00:02]}  fxg5 {[%clk 0:00:13]} 56. Qe5 {[%clk 0:00:03]}  Qc4 {[%clk 0:00:13]} 57. Qg3 {[%clk 0:00:02]}  Rd3 {[%clk 0:00:10]} 58. Re1 {[%clk 0:00:03]}  Qc3 {[%clk 0:00:09]} 59. Rg1 {[%clk 0:00:02]}  Qd4 {[%clk 0:00:09]} 60. Qh3 {[%clk 0:00:02]}  Qf6 {[%clk 0:00:08]} 61. Re1 {[%clk 0:00:02]}  h5 {[%clk 0:00:08]} 62. Qg3 {[%clk 0:00:02]}  Qc3 {[%clk 0:00:07]} 63. Qf2 {[%clk 0:00:03]}  Rd2 {[%clk 0:00:07]} 64. Qg1 {[%clk 0:00:03]}  Qc2 {[%clk 0:00:06]} 65. Rc1 {[%clk 0:00:03]}  Qd3 {[%clk 0:00:06]} 66. Rc6 {[%clk 0:00:03]}  Rd1 {[%clk 0:00:06]} 67. Rxe6+ {[%clk 0:00:02]}  Kf7 {[%clk 0:00:07]} 68. Rh6 {[%clk 0:00:02]}  Rxg1+ {[%clk 0:00:06]} 69. Kxg1 {[%clk 0:00:03]}  g4 {[%clk 0:00:06]} 70. Rxh5 {[%clk 0:00:02]}  g3 {[%clk 0:00:07]} 71. Rf5+ {[%clk 0:00:00]}  Kg6 {[%clk 0:00:07]} 0-1

[Event "January 2 Late 2024"]
[Site "https://www.chess.com"]
[Date "2024.01.02"]
[Round "10"]
[White "Melian, Juan Sebastian"]
[Black "Bhavikatti, Neil"]
[Result "1-0"]
[Board "63"]
[TimeControl "180+1"]
[WhiteFideId "3706575"]
[BlackFideId "30935024"]
[WhiteElo "2605"]
[BlackElo "2477"]
[WhiteTeam "PAR"]
[BlackTeam "USA"]
[WhiteClock "0:00:30"]
[BlackClock "0:00:00"]

1. d4 {[%clk 0:03:00]}  d5 {[%clk 0:02:59]} 2. Nf3 {[%clk 0:03:01]}  Nf6 {[%clk 0:02:59]} 3. Bg5 {[%clk 0:03:01]}  e6 {[%clk 0:02:58]} 4. Nbd2 {[%clk 0:03:01]}  Be7 {[%clk 0:02:58]} 5. e3 {[%clk 0:03:02]}  O-O {[%clk 0:02:58]} 6. Bd3 {[%clk 0:03:02]}  h6 {[%clk 0:02:58]} 7. Bh4 {[%clk 0:03:02]}  b6 {[%clk 0:02:58]} 8. O-O {[%clk 0:03:00]}  Bb7 {[%clk 0:02:59]} 9. Ne5 {[%clk 0:02:59]}  Nfd7 {[%clk 0:02:55]} 10. Bxe7 {[%clk 0:02:58]}  Qxe7 {[%clk 0:02:55]} 11. f4 {[%clk 0:02:59]}  c5 {[%clk 0:02:47]} 12. c3 {[%clk 0:02:59]}  Nc6 {[%clk 0:02:32]} 13. Qh5 {[%clk 0:02:30]}  Ncxe5 {[%clk 0:02:22]} 14. fxe5 {[%clk 0:02:29]}  f5 {[%clk 0:02:09]} 15. exf6 {[%clk 0:02:28]}  Nxf6 {[%clk 0:01:57]} 16. Qg6 {[%clk 0:02:24]}  Qe8 {[%clk 0:01:52]} 17. Qg3 {[%clk 0:02:05]}  e5 {[%clk 0:01:19]} 18. dxe5 {[%clk 0:01:27]}  Ne4 {[%clk 0:01:15]} 19. Rxf8+ {[%clk 0:01:21]}  Qxf8 {[%clk 0:01:14]} 20. Nxe4 {[%clk 0:01:13]}  dxe4 {[%clk 0:01:15]} 21. Bc4+ {[%clk 0:01:13]}  Kh8 {[%clk 0:01:15]} 22. e6 {[%clk 0:01:10]}  Qe8 {[%clk 0:00:55]} 23. Rf1 {[%clk 0:01:05]}  Bc6 {[%clk 0:00:40]} 24. Rf7 {[%clk 0:01:03]}  Qg8 {[%clk 0:00:41]} 25. e7 {[%clk 0:00:58]}  b5 {[%clk 0:00:27]} 26. Be6 {[%clk 0:00:46]}  Kh7 {[%clk 0:00:16]} 27. Bf5+ {[%clk 0:00:35]}  Kh8 {[%clk 0:00:17]} 28. Be6 {[%clk 0:00:29]}  Kh7 {[%clk 0:00:16]} 29. Qe5 {[%clk 0:00:30]}  Re8 {[%clk 0:00:08]} 30. Qf5+ {[%clk 0:00:29]}  Kh8 {[%clk 0:00:00]} 31. Rf8 {[%clk 0:00:30]} 1-0

[Event "January 2 Late 2024"]
[Site "https://www.chess.com"]
[Date "2024.01.02"]
[Round "10"]
[White "Blanco Diez, David"]
[Black "Banerjee, Supratit"]
[Result "0-1"]
[Board "66"]
[TimeControl "180+1"]
[WhiteFideId "32032927"]
[BlackFideId "2410079"]
[WhiteElo "2440"]
[BlackElo "2560"]
[WhiteTeam "ESP"]
[BlackTeam "SCO"]
[WhiteClock "0:00:11"]
[BlackClock "0:01:01"]

1. d4 {[%clk 0:02:51]}  d5 {[%clk 0:02:59]} 2. Nc3 {[%clk 0:02:51]}  Nf6 {[%clk 0:02:59]} 3. Bg5 {[%clk 0:02:51]}  e6 {[%clk 0:02:59]} 4. e4 {[%clk 0:02:51]}  dxe4 {[%clk 0:02:58]} 5. Nxe4 {[%clk 0:02:51]}  Be7 {[%clk 0:02:58]} 6. Bxf6 {[%clk 0:02:51]}  Bxf6 {[%clk 0:02:58]} 7. Nf3 {[%clk 0:02:52]}  Kf8 {[%clk 0:02:57]} 8. Qd2 {[%clk 0:02:51]}  Be7 {[%clk 0:02:52]} 9. O-O-O {[%clk 0:02:51]}  Bd7 {[%clk 0:02:52]} 10. Ne5 {[%clk 0:02:51]}  Be8 {[%clk 0:02:51]} 11. Bc4 {[%clk 0:02:48]}  Nc6 {[%clk 0:02:51]} 12. Qf4 {[%clk 0:02:43]}  Kg8 {[%clk 0:02:43]} 13. h4 {[%clk 0:02:41]}  Na5 {[%clk 0:02:40]} 14. Bd3 {[%clk 0:02:24]}  f6 {[%clk 0:02:38]} 15. Nf3 {[%clk 0:02:15]}  Bd6 {[%clk 0:02:33]} 16. Qe3 {[%clk 0:02:11]}  Bf7 {[%clk 0:02:31]} 17. g4 {[%clk 0:02:04]}  Nc6 {[%clk 0:02:29]} 18. Kb1 {[%clk 0:02:03]}  a5 {[%clk 0:02:26]} 19. g5 {[%clk 0:02:00]}  f5 {[%clk 0:02:26]} 20. Nxd6 {[%clk 0:01:59]}  cxd6 {[%clk 0:02:24]} 21. d5 {[%clk 0:01:57]}  exd5 {[%clk 0:02:24]} 22. Bxf5 {[%clk 0:01:52]}  Qe8 {[%clk 0:02:20]} 23. Rhe1 {[%clk 0:01:47]}  Qxe3 {[%clk 0:02:19]} 24. Rxe3 {[%clk 0:01:48]}  g6 {[%clk 0:02:18]} 25. Bg4 {[%clk 0:01:18]}  Kg7 {[%clk 0:02:16]} 26. Nd4 {[%clk 0:01:13]}  Ne5 {[%clk 0:02:14]} 27. Be6 {[%clk 0:01:11]}  Rae8 {[%clk 0:02:12]} 28. Bxf7 {[%clk 0:01:07]}  Nxf7 {[%clk 0:02:10]} 29. Ne6+ {[%clk 0:01:06]}  Kg8 {[%clk 0:02:09]} 30. Rxd5 {[%clk 0:01:05]}  h6 {[%clk 0:02:09]} 31. gxh6 {[%clk 0:00:58]}  Rxh6 {[%clk 0:02:08]} 32. Rxa5 {[%clk 0:00:48]}  Rxh4 {[%clk 0:02:05]} 33. a3 {[%clk 0:00:48]}  Rh2 {[%clk 0:02:02]} 34. f4 {[%clk 0:00:45]}  Rh1+ {[%clk 0:01:38]} 35. Ka2 {[%clk 0:00:45]}  Rh2 {[%clk 0:01:38]} 36. Kb3 {[%clk 0:00:44]}  Rh6 {[%clk 0:01:22]} 37. Ra7 {[%clk 0:00:40]}  g5 {[%clk 0:01:20]} 38. f5 {[%clk 0:00:40]}  Rf6 {[%clk 0:01:18]} 39. Rf3 {[%clk 0:00:25]}  Rexe6 {[%clk 0:01:16]} 40. fxe6 {[%clk 0:00:21]}  Rxf3+ {[%clk 0:01:16]} 41. Kb4 {[%clk 0:00:19]}  Ne5 {[%clk 0:01:14]} 42. e7 {[%clk 0:00:19]}  Kf7 {[%clk 0:01:11]} 43. Rxb7 {[%clk 0:00:20]}  Nc6+ {[%clk 0:01:11]} 44. Kb5 {[%clk 0:00:19]}  Nxe7 {[%clk 0:01:11]} 45. a4 {[%clk 0:00:19]}  Rf5+ {[%clk 0:01:11]} 46. Kb6 {[%clk 0:00:18]}  Ke6 {[%clk 0:01:11]} 47. a5 {[%clk 0:00:18]}  Nc8+ {[%clk 0:01:11]} 48. Kc7 {[%clk 0:00:18]}  Rc5+ {[%clk 0:01:10]} 49. Kd8 {[%clk 0:00:16]}  g4 {[%clk 0:01:06]} 50. a6 {[%clk 0:00:15]}  g3 {[%clk 0:01:06]} 51. Rg7 {[%clk 0:00:15]}  Nb6 {[%clk 0:01:05]} 52. Re7+ {[%clk 0:00:09]}  Kf6 {[%clk 0:01:04]} 53. Rc7 {[%clk 0:00:08]}  Rxc7 {[%clk 0:01:04]} 54. Kxc7 {[%clk 0:00:09]}  g2 {[%clk 0:01:03]} 55. Kxb6 {[%clk 0:00:09]}  g1=Q+ {[%clk 0:01:03]} 56. Kb7 {[%clk 0:00:10]}  Qg2+ {[%clk 0:01:03]} 57. Kb8 {[%clk 0:00:10]}  Qxc2 {[%clk 0:01:02]} 58. a7 {[%clk 0:00:10]}  Qxb2+ {[%clk 0:01:02]} 59. Kc7 {[%clk 0:00:11]}  Qc3+ {[%clk 0:01:01]} 60. Kb7 {[%clk 0:00:11]}  Qb4+ {[%clk 0:01:01]} 61. Kc6 {[%clk 0:00:11]}  Qc5+ {[%clk 0:01:01]} 62. Kb7 {[%clk 0:00:11]}  Qxa7+ {[%clk 0:01:01]} 63. Kc8 {[%clk 0:00:11]}  d5 {[%clk 0:01:02]} 64. Kd8 {[%clk 0:00:11]}  Qb7 {[%clk 0:01:01]} 65. Ke8 {[%clk 0:00:11]}  Qe7# {[%clk 0:01:01]} 0-1

[Event "January 2 Late 2024"]
[Site "https://www.chess.com"]
[Date "2024.01.02"]
[Round "10"]
[White "Ferreira, Vitor Hugo Vieira"]
[Black "Awoki, Daniel Teidi"]
[Result "1/2-1/2"]
[Board "67"]
[TimeControl "180+1"]
[WhiteFideId "2119765"]
[BlackFideId "2100827"]
[WhiteElo "2550"]
[BlackElo "2436"]
[WhiteTeam "BRA"]
[BlackTeam "BRA"]
[WhiteClock "0:01:14"]
[BlackClock "0:00:05"]

1. c4 {[%clk 0:03:00]}  e5 {[%clk 0:02:59]} 2. g3 {[%clk 0:03:00]}  Nf6 {[%clk 0:02:59]} 3. Bg2 {[%clk 0:03:00]}  d5 {[%clk 0:02:59]} 4. cxd5 {[%clk 0:03:01]}  Nxd5 {[%clk 0:03:00]} 5. Nf3 {[%clk 0:03:01]}  Nc6 {[%clk 0:03:00]} 6. O-O {[%clk 0:03:01]}  Nb6 {[%clk 0:03:00]} 7. Nc3 {[%clk 0:02:57]}  Be7 {[%clk 0:03:01]} 8. a3 {[%clk 0:02:52]}  O-O {[%clk 0:02:58]} 9. b4 {[%clk 0:02:51]}  Re8 {[%clk 0:02:56]} 10. d3 {[%clk 0:02:46]}  a5 {[%clk 0:02:56]} 11. b5 {[%clk 0:02:45]}  Nd4 {[%clk 0:02:56]} 12. a4 {[%clk 0:02:39]}  Bf8 {[%clk 0:02:51]} 13. Rb1 {[%clk 0:02:33]}  f5 {[%clk 0:02:15]} 14. Bb2 {[%clk 0:02:28]}  Kh8 {[%clk 0:02:07]} 15. e3 {[%clk 0:02:22]}  Nxf3+ {[%clk 0:02:05]} 16. Bxf3 {[%clk 0:02:22]}  Bb4 {[%clk 0:01:33]} 17. Na2 {[%clk 0:02:09]}  Bd6 {[%clk 0:01:25]} 18. Qc2 {[%clk 0:02:07]}  Rb8 {[%clk 0:01:20]} 19. Rfd1 {[%clk 0:02:07]}  Be6 {[%clk 0:01:20]} 20. Nc3 {[%clk 0:02:03]}  Qe7 {[%clk 0:01:15]} 21. Bg2 {[%clk 0:01:57]}  Red8 {[%clk 0:01:11]} 22. d4 {[%clk 0:01:56]}  e4 {[%clk 0:01:06]} 23. d5 {[%clk 0:01:55]}  Bf7 {[%clk 0:01:02]} 24. Ne2 {[%clk 0:01:43]}  Be5 {[%clk 0:00:56]} 25. Nf4 {[%clk 0:01:42]}  Bxb2 {[%clk 0:00:49]} 26. Rxb2 {[%clk 0:01:43]}  Nxd5 {[%clk 0:00:44]} 27. Rc1 {[%clk 0:01:32]}  Nxf4 {[%clk 0:00:29]} 28. exf4 {[%clk 0:01:32]}  Rbc8 {[%clk 0:00:28]} 29. Qc3 {[%clk 0:01:25]}  b6 {[%clk 0:00:20]} 30. Re2 {[%clk 0:01:25]}  Qd6 {[%clk 0:00:16]} 31. f3 {[%clk 0:01:22]}  Bh5 {[%clk 0:00:14]} 32. Rf2 {[%clk 0:01:18]}  exf3 {[%clk 0:00:13]} 33. Bxf3 {[%clk 0:01:18]}  Bxf3 {[%clk 0:00:12]} 34. Rxf3 {[%clk 0:01:19]}  Qd4+ {[%clk 0:00:12]} 35. Qxd4 {[%clk 0:01:18]}  Rxd4 {[%clk 0:00:13]} 36. Rfc3 {[%clk 0:01:19]}  Rxa4 {[%clk 0:00:12]} 37. Rxc7 {[%clk 0:01:19]}  Rxc7 {[%clk 0:00:12]} 38. Rxc7 {[%clk 0:01:20]}  h6 {[%clk 0:00:11]} 39. Rc6 {[%clk 0:01:19]}  Rb4 {[%clk 0:00:10]} 40. Rxb6 {[%clk 0:01:20]}  a4 {[%clk 0:00:10]} 41. Rb8+ {[%clk 0:01:20]}  Kh7 {[%clk 0:00:10]} 42. b6 {[%clk 0:01:21]}  a3 {[%clk 0:00:10]} 43. Ra8 {[%clk 0:01:15]}  Rb1+ {[%clk 0:00:08]} 44. Kg2 {[%clk 0:01:15]}  Rb2+ {[%clk 0:00:09]} 45. Kh3 {[%clk 0:01:15]}  Rxb6 {[%clk 0:00:09]} 46. Rxa3 {[%clk 0:01:15]}  Rb2 {[%clk 0:00:10]} 47. Ra5 {[%clk 0:01:14]}  Kg6 {[%clk 0:00:08]} 48. Ra6+ {[%clk 0:01:14]}  Kf7 {[%clk 0:00:09]} 49. Ra7+ {[%clk 0:01:14]}  Kf6 {[%clk 0:00:09]} 50. Ra6+ {[%clk 0:01:15]}  Kf7 {[%clk 0:00:09]} 51. Ra7+ {[%clk 0:01:15]}  Kg6 {[%clk 0:00:09]} 52. Ra8 {[%clk 0:01:15]}  Rc2 {[%clk 0:00:08]} 53. Re8 {[%clk 0:01:15]}  Rc6 {[%clk 0:00:07]} 54. Kg2 {[%clk 0:01:13]}  Rc2+ {[%clk 0:00:07]} 55. Kh3 {[%clk 0:01:13]}  Rb2 {[%clk 0:00:07]} 56. Re6+ {[%clk 0:01:12]}  Kf7 {[%clk 0:00:06]} 57. Ra6 {[%clk 0:01:13]}  Rc2 {[%clk 0:00:06]} 58. Ra7+ {[%clk 0:01:13]}  Kf6 {[%clk 0:00:06]} 59. Ra5 {[%clk 0:01:14]}  Rb2 {[%clk 0:00:05]} 60. Ra6+ {[%clk 0:01:14]}  Kf7 {[%clk 0:00:05]} 1/2-1/2

[Event "January 2 Late 2024"]
[Site "https://www.chess.com"]
[Date "2024.01.02"]
[Round "10"]
[White "CRObliterator"]
[Black "Grinev, Valeriy"]
[Result "1-0"]
[Board "68"]
[TimeControl "180+1"]
[BlackFideId "14117517"]
[WhiteElo "2385"]
[BlackElo "2546"]
[BlackTeam "UKR"]
[WhiteClock "0:00:16"]
[BlackClock "0:00:58"]

1. d4 {[%clk 0:02:27]}  c5 {[%clk 0:03:00]} 2. e4 {[%clk 0:02:26]}  cxd4 {[%clk 0:03:01]} 3. c3 {[%clk 0:02:26]}  Nc6 {[%clk 0:03:02]} 4. cxd4 {[%clk 0:02:25]}  d6 {[%clk 0:03:03]} 5. Nc3 {[%clk 0:02:21]}  e6 {[%clk 0:03:03]} 6. f3 {[%clk 0:02:20]}  a6 {[%clk 0:03:03]} 7. Be3 {[%clk 0:02:20]}  Nge7 {[%clk 0:03:03]} 8. Qd2 {[%clk 0:02:20]}  d5 {[%clk 0:03:03]} 9. Rd1 {[%clk 0:02:14]}  h6 {[%clk 0:03:00]} 10. h4 {[%clk 0:02:12]}  Bd7 {[%clk 0:02:58]} 11. Nge2 {[%clk 0:02:11]}  dxe4 {[%clk 0:02:58]} 12. fxe4 {[%clk 0:02:10]}  h5 {[%clk 0:02:56]} 13. d5 {[%clk 0:01:58]}  exd5 {[%clk 0:02:55]} 14. exd5 {[%clk 0:01:57]}  Ne5 {[%clk 0:02:55]} 15. d6 {[%clk 0:01:54]}  N7g6 {[%clk 0:02:55]} 16. Nf4 {[%clk 0:01:40]}  Bg4 {[%clk 0:02:49]} 17. Be2 {[%clk 0:01:27]}  Bxe2 {[%clk 0:02:48]} 18. Qxe2 {[%clk 0:01:16]}  Qd7 {[%clk 0:02:36]} 19. Nxg6 {[%clk 0:01:13]}  fxg6 {[%clk 0:02:30]} 20. Bf4 {[%clk 0:01:07]}  O-O-O {[%clk 0:02:20]} 21. Bxe5 {[%clk 0:01:04]}  Re8 {[%clk 0:02:20]} 22. O-O {[%clk 0:01:01]}  g5 {[%clk 0:02:14]} 23. Qc4+ {[%clk 0:00:58]}  Kb8 {[%clk 0:02:14]} 24. Qc7+ {[%clk 0:00:58]}  Qxc7 {[%clk 0:02:12]} 25. dxc7+ {[%clk 0:00:59]}  Ka7 {[%clk 0:02:11]} 26. Bd4+ {[%clk 0:00:51]}  b6 {[%clk 0:02:10]} 27. Rf7 {[%clk 0:00:44]}  Kb7 {[%clk 0:02:08]} 28. c8=Q+ {[%clk 0:00:34]}  Kxc8 {[%clk 0:02:08]} 29. Bxb6 {[%clk 0:00:34]}  gxh4 {[%clk 0:02:07]} 30. Rdd7 {[%clk 0:00:28]}  Bb4 {[%clk 0:01:51]} 31. Nd5 {[%clk 0:00:24]}  Rh6 {[%clk 0:01:39]} 32. Rc7+ {[%clk 0:00:23]}  Kb8 {[%clk 0:01:39]} 33. Ba7+ {[%clk 0:00:22]}  Ka8 {[%clk 0:01:38]} 34. Rcd7 {[%clk 0:00:17]}  Re1+ {[%clk 0:01:35]} 35. Kf2 {[%clk 0:00:16]}  Re8 {[%clk 0:01:10]} 36. Nb6+ {[%clk 0:00:16]}  Rxb6 {[%clk 0:01:08]} 37. Bxb6 {[%clk 0:00:17]}  a5 {[%clk 0:01:06]} 38. Rxg7 {[%clk 0:00:16]}  h3 {[%clk 0:01:04]} 39. gxh3 {[%clk 0:00:15]}  h4 {[%clk 0:01:01]} 40. Be3 {[%clk 0:00:15]}  Rf8+ {[%clk 0:00:59]} 41. Rdf7 {[%clk 0:00:15]}  Re8 {[%clk 0:00:59]} 42. Ra7+ {[%clk 0:00:15]}  Kb8 {[%clk 0:00:58]} 43. Rgb7+ {[%clk 0:00:16]}  Kc8 {[%clk 0:00:59]} 44. Ra8+ {[%clk 0:00:16]}  Kxb7 {[%clk 0:01:00]} 45. Rxe8 {[%clk 0:00:17]}  Kc6 {[%clk 0:01:00]} 46. Re4 {[%clk 0:00:17]}  Kd5 {[%clk 0:01:01]} 47. Rxh4 {[%clk 0:00:17]}  Be1+ {[%clk 0:00:58]} 48. Kxe1 {[%clk 0:00:16]} 1-0

[Event "January 2 Late 2024"]
[Site "https://www.chess.com"]
[Date "2024.01.02"]
[Round "10"]
[White "Pinheiro, Iung Alicio de O."]
[Black "Carrasco Miranda, Andres"]
[Result "1-0"]
[Board "69"]
[TimeControl "180+1"]
[WhiteFideId "2104350"]
[BlackFideId "3405990"]
[WhiteElo "2545"]
[BlackElo "2423"]
[WhiteTeam "BRA"]
[BlackTeam "CHI"]
[WhiteClock "0:00:13"]
[BlackClock "0:00:00"]

1. e4 {[%clk 0:03:00]}  e5 {[%clk 0:02:57]} 2. Nf3 {[%clk 0:02:59]}  Nc6 {[%clk 0:02:57]} 3. g3 {[%clk 0:02:58]}  Nf6 {[%clk 0:02:55]} 4. d3 {[%clk 0:02:57]}  d5 {[%clk 0:02:51]} 5. exd5 {[%clk 0:02:56]}  Nxd5 {[%clk 0:02:52]} 6. Bg2 {[%clk 0:02:56]}  Be7 {[%clk 0:02:43]} 7. O-O {[%clk 0:02:56]}  O-O {[%clk 0:02:43]} 8. Re1 {[%clk 0:02:56]}  Bf6 {[%clk 0:02:44]} 9. Nbd2 {[%clk 0:02:56]}  Bf5 {[%clk 0:02:41]} 10. Nc4 {[%clk 0:02:25]}  Re8 {[%clk 0:02:40]} 11. a4 {[%clk 0:02:15]}  Rb8 {[%clk 0:02:37]} 12. Nfd2 {[%clk 0:01:47]}  Qd7 {[%clk 0:02:30]} 13. Ne4 {[%clk 0:01:45]}  Be7 {[%clk 0:02:27]} 14. c3 {[%clk 0:01:44]}  Bg6 {[%clk 0:02:26]} 15. Qb3 {[%clk 0:01:32]}  a6 {[%clk 0:02:21]} 16. a5 {[%clk 0:01:30]}  h6 {[%clk 0:02:14]} 17. Qa4 {[%clk 0:00:47]}  f5 {[%clk 0:02:04]} 18. Ned2 {[%clk 0:00:47]}  Bc5 {[%clk 0:01:41]} 19. Nf3 {[%clk 0:00:46]}  e4 {[%clk 0:01:28]} 20. dxe4 {[%clk 0:00:46]}  fxe4 {[%clk 0:01:29]} 21. Nh4 {[%clk 0:00:46]}  Bh7 {[%clk 0:01:29]} 22. Ne3 {[%clk 0:00:42]}  Nxe3 {[%clk 0:01:11]} 23. Bxe3 {[%clk 0:00:39]}  Bxe3 {[%clk 0:00:39]} 24. Rxe3 {[%clk 0:00:40]}  Qd2 {[%clk 0:00:28]} 25. Bxe4 {[%clk 0:00:31]}  Bxe4 {[%clk 0:00:28]} 26. Rxe4 {[%clk 0:00:31]}  Qxb2 {[%clk 0:00:22]} 27. Qc4+ {[%clk 0:00:26]}  Kh7 {[%clk 0:00:19]} 28. Rae1 {[%clk 0:00:26]}  Rxe4 {[%clk 0:00:13]} 29. Qxe4+ {[%clk 0:00:26]}  Kg8 {[%clk 0:00:13]} 30. Qe6+ {[%clk 0:00:26]}  Kh7 {[%clk 0:00:13]} 31. Qg6+ {[%clk 0:00:25]}  Kh8 {[%clk 0:00:11]} 32. Re3 {[%clk 0:00:17]}  Rd8 {[%clk 0:00:09]} 33. Nf5 {[%clk 0:00:14]}  Rg8 {[%clk 0:00:05]} 34. Nxh6 {[%clk 0:00:13]}  Qc1+ {[%clk 0:00:00]} 35. Kg2 {[%clk 0:00:13]} 1-0

[Event "January 2 Late 2024"]
[Site "https://www.chess.com"]
[Date "2024.01.02"]
[Round "10"]
[White "Tabuenca Mendataurigoitia, Daniel"]
[Black "Slavin, Alexey"]
[Result "1-0"]
[Board "70"]
[TimeControl "180+1"]
[WhiteFideId "24563617"]
[BlackFideId "24104388"]
[WhiteElo "2536"]
[BlackElo "2294"]
[WhiteTeam "ESP"]
[BlackTeam "RUS"]
[WhiteClock "0:00:26"]
[BlackClock "0:00:26"]

1. Nf3 {[%clk 0:03:00]}  Nc6 {[%clk 0:02:59]} 2. g3 {[%clk 0:02:58]}  Nf6 {[%clk 0:02:58]} 3. Bg2 {[%clk 0:02:58]}  e5 {[%clk 0:02:57]} 4. d3 {[%clk 0:02:57]}  d6 {[%clk 0:02:56]} 5. O-O {[%clk 0:02:56]}  Be7 {[%clk 0:02:56]} 6. c4 {[%clk 0:02:57]}  O-O {[%clk 0:02:56]} 7. Nc3 {[%clk 0:02:57]}  Bd7 {[%clk 0:02:56]} 8. Rb1 {[%clk 0:02:58]}  Qc8 {[%clk 0:02:56]} 9. b4 {[%clk 0:02:57]}  Bh3 {[%clk 0:02:56]} 10. b5 {[%clk 0:02:54]}  Nb8 {[%clk 0:02:56]} 11. Bg5 {[%clk 0:02:50]}  Bxg2 {[%clk 0:02:55]} 12. Kxg2 {[%clk 0:02:50]}  h6 {[%clk 0:02:56]} 13. Bxf6 {[%clk 0:02:49]}  Bxf6 {[%clk 0:02:56]} 14. Nd5 {[%clk 0:02:48]}  Bd8 {[%clk 0:02:56]} 15. a4 {[%clk 0:02:45]}  Nd7 {[%clk 0:02:56]} 16. Nd2 {[%clk 0:02:35]}  f5 {[%clk 0:02:55]} 17. e3 {[%clk 0:02:20]}  c6 {[%clk 0:02:55]} 18. Nc3 {[%clk 0:02:16]}  Ba5 {[%clk 0:02:54]} 19. Qb3 {[%clk 0:02:14]}  Nc5 {[%clk 0:02:49]} 20. Qc2 {[%clk 0:02:12]}  Bxc3 {[%clk 0:02:48]} 21. Qxc3 {[%clk 0:02:13]}  Nxa4 {[%clk 0:02:48]} 22. Qa3 {[%clk 0:02:10]}  Nc5 {[%clk 0:02:48]} 23. d4 {[%clk 0:02:09]}  exd4 {[%clk 0:02:39]} 24. exd4 {[%clk 0:02:10]}  Ne4 {[%clk 0:02:31]} 25. Nxe4 {[%clk 0:01:57]}  fxe4 {[%clk 0:02:31]} 26. Qxd6 {[%clk 0:01:58]}  Qf5 {[%clk 0:02:31]} 27. bxc6 {[%clk 0:01:55]}  bxc6 {[%clk 0:02:29]} 28. Qxc6 {[%clk 0:01:53]}  Qf3+ {[%clk 0:02:28]} 29. Kg1 {[%clk 0:01:52]}  Kh8 {[%clk 0:02:22]} 30. Rbe1 {[%clk 0:01:46]}  Rae8 {[%clk 0:02:21]} 31. Re3 {[%clk 0:01:44]}  Qf5 {[%clk 0:02:17]} 32. c5 {[%clk 0:01:42]}  Re6 {[%clk 0:02:12]} 33. Qd7 {[%clk 0:01:36]}  Rf7 {[%clk 0:01:37]} 34. Qc8+ {[%clk 0:01:23]}  Rf8 {[%clk 0:01:34]} 35. Qb7 {[%clk 0:01:21]}  Rf7 {[%clk 0:01:33]} 36. Qa8+ {[%clk 0:01:19]}  Kh7 {[%clk 0:01:27]} 37. f3 {[%clk 0:00:50]}  Rf8 {[%clk 0:00:59]} 38. Qb7 {[%clk 0:00:47]}  Rf7 {[%clk 0:00:54]} 39. Qb1 {[%clk 0:00:47]}  Rfe7 {[%clk 0:00:42]} 40. fxe4 {[%clk 0:00:44]}  Qg5 {[%clk 0:00:42]} 41. e5+ {[%clk 0:00:44]}  Kg8 {[%clk 0:00:41]} 42. Ref3 {[%clk 0:00:44]}  Re8 {[%clk 0:00:41]} 43. Qb3 {[%clk 0:00:37]}  Qd2 {[%clk 0:00:38]} 44. Rf8+ {[%clk 0:00:28]}  Kh7 {[%clk 0:00:37]} 45. Qb1+ {[%clk 0:00:28]}  Rg6 {[%clk 0:00:28]} 46. Rxe8 {[%clk 0:00:27]}  Qxd4+ {[%clk 0:00:28]} 47. Rf2 {[%clk 0:00:26]}  Qxc5 {[%clk 0:00:27]} 48. Rh8+ {[%clk 0:00:25]}  Kxh8 {[%clk 0:00:26]} 49. Qxg6 {[%clk 0:00:26]}  Qxe5 {[%clk 0:00:26]} 50. Rf8# {[%clk 0:00:26]} 1-0